bitfinex-derivatives/quotes_SOLF0:USTF0_20241103
["timestamp","ask_amount","ask_price","bid_price","bid_amount"]
[1730650823623,4.12,160.52,160.44,3.1174]
[1730650823928,4.12,160.52,160.39,6.8195]
[1730650824526,3.1167,160.49,160.39,2.6995]
[1730650824724,3.1167,160.49,160.39,6.8195]
[1730650825933,3.1167,160.49,160.45,3.1172]
[1730650826829,4.12,160.52,160.45,3.1172]
[1730650828136,1.4001,160.56,160.39,6.8195]
[1730650828434,4.12,160.55,160.39,6.8195]
[1730650828823,3.1158,160.53,160.49,3.1164]
[1730650829937,3.1159,160.52,160.49,3.1164]
[1730650831026,3.1163,160.5,160.47,3.1169]
[1730650831223,4.12,160.55,160.39,6.8195]
[1730650831432,3.1163,160.51,160.47,3.1168]
[1730650831634,4.12,160.54,160.39,6.8195]
[1730650832229,4.12,160.55,160.39,6.8195]
[1730650832630,3.1157,160.54,160.39,6.8195]
[1730650832834,1.4001,160.56,160.39,6.8195]
[1730650833028,61.0199721,160.6,160.43,16.74581167]
[1730650833233,61.0199721,160.6,160.56,3.115]
[1730650833437,4.12,160.62,160.56,3.115]
[1730650834040,3.1144,160.6,160.56,3.115]
[1730650837046,4.12,160.62,160.56,3.115]
[1730650837349,3.1146,160.59,160.56,3.115]
[1730650837542,4.12,160.62,160.51,2.7474]
[1730650837845,4.12,160.62,160.54,3.1154]
[1730650838346,4.12,160.62,160.51,1.3636]
[1730650838548,4.12,160.62,160.5,4.12]
[1730650838849,3.1154,160.55,160.45,2.602]
[1730650839048,4.12,160.57,160.51,3.1159]
[1730650839347,4.12,160.57,160.45,2.602]
[1730650839548,3.1162,160.51,160.47,3.1168]
[1730650840046,3.1165,160.5,160.46,3.1169]
[1730650840254,3.1165,160.5,160.41,4.12]
[1730650840842,3.1165,160.5,160.43,3.1175]
[1730650841040,3.1165,160.5,160.41,4.12]
[1730650841238,4.12,160.52,160.41,4.12]
[1730650841441,3.9908,160.56,160.41,4.12]
[1730650841442,6.8102,160.56,160.41,4.12]
[1730650841642,4.12,160.6,160.43,16.74581167]
[1730650841855,4.12,160.6,160.43,19.85125377]
[1730650842072,3.1149,160.58,160.53,3.1155]
[1730650842452,4.12,160.6,160.48,4.12]
[1730650842665,3.1148,160.58,160.54,3.1154]
[1730650843652,3.1151,160.57,160.52,3.1159]
[1730650843852,3.1151,160.57,160.49,2.6419]
[1730650844852,3.1151,160.57,160.53,3.1156]
[1730650845976,7.2344,160.6,160.56,3.1151]
[1730650846446,4.12,160.6,160.5,1.3522]
[1730650847259,3.1146,160.59,160.55,3.1153]
[1730650848367,3.1135,160.65,160.62,3.1139]
[1730650848559,3.1135,160.65,160.53,4.12]
[1730650848560,1.2823,160.69,160.53,4.12]
[1730650849163,3.1134,160.65,160.61,3.1141]
[1730650849554,3.1139,160.63,160.53,4.12]
[1730650849752,1.2823,160.69,160.53,4.12]
[1730650850558,3.1135,160.65,160.6,3.1142]
[1730650851156,1.2823,160.69,160.58,3.1146]
[1730650851353,1.2823,160.69,160.53,4.12]
[1730650851746,3.1141,160.62,160.58,3.1147]
[1730650852246,3.1137,160.64,160.59,3.1144]
[1730650852445,1.2823,160.69,160.53,4.12]
[1730650852861,3.1135,160.65,160.53,4.12]
[1730650853163,1.2823,160.69,160.53,4.12]
[1730650853560,3.1134,160.65,160.53,4.12]
[1730650854274,3.1134,160.65,160.61,3.114]
[1730650855353,3.1132,160.66,160.57,3.1148]
[1730650855564,3.1132,160.66,160.53,4.12]
[1730650856068,3.1129,160.68,160.53,4.12]
[1730650856363,16.74581167,160.84,160.57,16.74581167]
[1730650856661,16.74581167,160.75,160.51,16.74581167]
[1730650856858,4.1,160.74,160.53,1.3556]
[1730650857074,3.1139,160.63,160.58,3.1147]
[1730650857357,4.1,160.65,160.53,1.3556]
[1730650858059,4.1,160.65,160.57,3.1148]
[1730650858254,3.114,160.62,160.57,3.1148]
[1730650860260,2.6449,160.64,160.53,1.3556]
[1730650861068,3.114,160.63,160.58,3.1147]
[1730650862772,3.114,160.62,160.58,3.1147]
[1730650863074,2.6449,160.64,160.59,3.1145]
[1730650863267,3.114,160.63,160.59,3.1145]
[1730650864364,2.6449,160.64,160.59,3.1145]
[1730650864365,3.114,160.62,160.59,3.1145]
[1730650864579,2.6449,160.64,160.53,1.3556]
[1730650864759,1.3526,160.64,160.53,1.3556]
[1730650864967,4.4664,160.64,160.53,1.3556]
[1730650865466,1.3526,160.64,160.53,1.3556]
[1730650865667,3.1143,160.61,160.53,1.3556]
[1730650865863,4.1,160.62,160.53,3.1156]
[1730650866173,3.1149,160.58,160.52,1.3104]
[1730650866854,4.4579,160.61,160.52,1.3104]
[1730650867056,1.3436,160.61,160.52,1.3104]
[1730650867957,3.1145,160.6,160.52,1.3104]
[1730650868561,3.1145,160.6,160.56,3.1151]
[1730650869371,3.1146,160.59,160.56,3.1151]
[1730650870376,3.1151,160.57,160.53,3.1156]
[1730650870773,3.1151,160.57,160.52,1.3104]
[1730650870968,3.1148,160.58,160.54,3.1154]
[1730650872666,4.1,160.62,160.48,1.3822]
[1730650872879,1.4155,160.57,160.46,1.2851]
[1730650873075,1.4155,160.57,160.46,5.3851]
[1730650873269,5.5155,160.57,160.46,5.3851]
[1730650873471,3.1156,160.54,160.5,3.1163]
[1730650874062,5.5155,160.57,160.5,3.1163]
[1730650874063,3.1157,160.53,160.5,3.1163]
[1730650874669,5.5155,160.57,160.5,3.1163]
[1730650874870,3.1156,160.54,160.5,3.1163]
[1730650875670,5.5155,160.57,160.46,1.2851]
[1730650875873,3.1159,160.53,160.49,3.1165]
[1730650876380,3.1159,160.53,160.46,1.2851]
[1730650876679,3.1159,160.52,160.46,1.2851]
[1730650876886,1.3125,160.56,160.46,1.2851]
[1730650877574,1.3125,160.56,160.51,3.116]
[1730650877774,3.1155,160.55,160.51,3.116]
[1730650878278,4.1,160.67,160.51,4.1]
[1730650878577,1.3253,160.63,160.51,4.1]
[1730650878776,3.1144,160.6,160.51,4.1]
[1730650879180,1.3253,160.63,160.51,4.1]
[1730650879478,1.4162,160.64,160.52,1.4141]
[1730650879781,3.1139,160.63,160.55,3.1152]
[1730650880081,1.4162,160.64,160.53,1.3628]
[1730650880490,4.1,160.67,160.53,1.3628]
[1730650880979,1.2792,160.69,160.53,1.3628]
[1730650881589,3.113,160.68,160.63,3.1138]
[1730650881972,3.113,160.67,160.63,3.1138]
[1730650882981,1.2792,160.69,160.63,3.1138]
[1730650882982,3.1129,160.68,160.63,3.1138]
[1730650883281,1.2792,160.69,160.61,3.114]
[1730650883477,2.6292,160.69,160.53,1.3628]
[1730650883684,2.6292,160.69,160.54,4.1]
[1730650883874,2.6292,160.69,160.57,3.1149]
[1730650884187,3.1143,160.61,160.57,3.1149]
[1730650885587,3.1143,160.61,160.58,3.1147]
[1730650886884,4.1,160.64,160.53,5.4628]
[1730650887109,1.3036,160.63,160.53,5.4628]
[1730650887279,1.3036,160.63,160.53,1.3628]
[1730650887581,1.3036,160.63,160.55,3.1153]
[1730650887582,3.1147,160.59,160.55,3.1153]
[1730650888088,1.3508,160.62,160.5,4.1]
[1730650888676,1.3036,160.63,160.5,4.1]
[1730650889281,3.1143,160.61,160.57,3.1149]
[1730650889487,1.3036,160.67,160.57,3.1149]
[1730650889990,3.1141,160.62,160.59,3.1146]
[1730650890185,1.3036,160.67,160.49,1.3224]
[1730650890374,1.3036,160.67,160.5,4.1]
[1730650890576,1.3036,160.67,160.52,16.74581167]
[1730650890780,1.3036,160.67,160.52,19.79423822]
[1730650891083,3.1126,160.7,160.65,3.1133]
[1730650891393,3.1126,160.7,160.61,4.1]
[1730650891797,3.1126,160.7,160.65,3.1132]
[1730650891987,3.1126,160.69,160.65,3.1132]
[1730650892286,6.7059,160.72,160.61,4.1]
[1730650892680,3.1131,160.67,160.61,4.1]
[1730650892881,6.7059,160.72,160.63,3.1138]
[1730650893192,25.4059,160.72,160.55,4.1]
[1730650893688,25.4059,160.72,160.56,1.31]
[1730650894092,6.7059,160.72,160.57,1.3843]
[1730650894605,3.1131,160.67,160.63,3.1137]
[1730650894792,6.7059,160.72,160.57,1.3843]
[1730650895095,3.1129,160.68,160.64,3.1135]
[1730650896395,3.1124,160.71,160.6,4.1]
[1730650896998,2.6059,160.72,160.6,4.1]
[1730650897189,60.96020509,160.77,160.6,4.1]
[1730650897591,3.1118,160.74,160.69,3.1124]
[1730650898279,60.96020509,160.77,160.69,3.1124]
[1730650898483,3.1119,160.73,160.69,3.1124]
[1730650900498,3.1124,160.71,160.65,1.3257]
[1730650900689,60.96020509,160.77,160.65,1.3257]
[1730650901397,60.96020509,160.77,160.63,4.1]
[1730650901698,60.96020509,160.77,160.7,3.1124]
[1730650901994,60.96020509,160.77,160.63,4.1]
[1730650902194,60.96020509,160.77,160.64,2.6229]
[1730650902400,64.07130509,160.77,160.73,3.1117]
[1730650902790,2.6629,160.79,160.73,3.1117]
[1730650903102,3.1112,160.77,160.73,3.1117]
[1730650903409,1.3268,160.79,160.68,4.1]
[1730650903701,3.1109,160.78,160.68,4.1]
[1730650904992,1.3268,160.79,160.68,4.1]
[1730650906002,1.3425,160.82,160.68,4.1]
[1730650906204,3.1104,160.81,160.72,3.1119]
[1730650906395,3.1104,160.81,160.73,1.39]
[1730650906703,3.1104,160.81,160.73,5.49]
[1730650906904,3.1104,160.81,160.77,3.111]
[1730650907400,3.1109,160.79,160.74,3.1115]
[1730650907595,3.1109,160.79,160.73,4.1]
[1730650909306,3.1109,160.79,160.75,3.1113]
[1730650910806,2.636,160.83,160.73,4.1]
[1730650911009,2.636,160.83,160.74,1.414]
[1730650911700,3.1102,160.82,160.78,3.1109]
[1730650912007,2.636,160.83,160.74,1.414]
[1730650912713,3.1104,160.81,160.77,3.111]
[1730650913107,2.636,160.83,160.73,4.1]
[1730650913297,2.636,160.83,160.75,3.1113]
[1730650914110,3.1108,160.79,160.75,3.1113]
[1730650914608,2.636,160.83,160.74,3.1116]
[1730650915102,3.1115,160.75,160.67,1.3633]
[1730650915302,3.1115,160.75,160.72,3.112]
[1730650915503,4.08,160.79,160.67,1.3633]
[1730650915711,3.1114,160.76,160.71,3.1121]
[1730650915896,4.08,160.79,160.71,3.1121]
[1730650916103,4.08,160.79,160.67,5.4433]
[1730650916496,3.1116,160.75,160.67,5.4433]
[1730650917204,3.1116,160.75,160.71,3.1121]
[1730650918006,3.1117,160.74,160.71,3.1121]
[1730650922106,6.716,160.83,160.67,5.4433]
[1730650922321,19.77406648,160.82,160.67,1.3633]
[1730650922607,19.77406648,160.82,160.64,2.6229]
[1730650922608,2.44306648,160.81,160.68,3.1127]
[1730650922810,7.5898,160.81,160.68,3.1127]
[1730650923001,3.1122,160.72,160.65,4.08]
[1730650923200,4.08,160.76,160.7,3.1124]
[1730650923602,1.3054,160.75,160.65,4.08]
[1730650923805,1.3054,160.75,160.64,1.3128]
[1730650923806,2.5966,160.75,160.64,1.3128]
[1730650924102,3.1119,160.73,160.64,1.3128]
[1730650924305,3.1119,160.73,160.69,3.1125]
[1730650924506,2.5966,160.75,160.63,4.08]
[1730650924914,1.4081,160.74,160.66,3.113]
[1730650925104,1.4081,160.74,160.63,4.08]
[1730650925313,1.4081,160.74,160.64,3.1135]
[1730650925510,1.4081,160.74,160.58,1.3287]
[1730650925705,1.4081,160.74,160.59,4.08]
[1730650926013,1.4081,160.74,160.64,3.1135]
[1730650926512,3.1129,160.68,160.64,3.1135]
[1730650926709,4.08,160.71,160.59,4.08]
[1730650927014,4.08,160.72,160.66,3.1131]
[1730650927214,4.08,160.72,160.59,4.08]
[1730650927715,4.08,160.73,160.66,3.1131]
[1730650928012,1.4081,160.74,160.61,3.05967159]
[1730650928200,3.1121,160.72,160.68,3.1127]
[1730650928618,5.4881,160.74,160.68,3.1127]
[1730650928915,3.1123,160.71,160.61,3.14290465]
[1730650929110,3.1123,160.71,160.67,3.1129]
[1730650929416,3.1124,160.7,160.67,3.1129]
[1730650929619,5.4881,160.74,160.64,3.1134]
[1730650929814,3.1128,160.68,160.6,4.08]
[1730650930323,3.1128,160.68,160.64,3.1135]
[1730650930703,5.4881,160.74,160.59,4.08]
[1730650930906,3.1127,160.69,160.65,3.1133]
[1730650931114,5.4881,160.74,160.65,3.1133]
[1730650931910,3.113,160.68,160.6,4.08]
[1730650932518,3.113,160.68,160.65,3.1134]
[1730650932821,5.4881,160.74,160.6,4.08]
[1730650933215,5.4881,160.74,160.61,3.114]
[1730650933517,3.1126,160.7,160.58,1.3111]
[1730650933712,4.08,160.69,160.61,3.1142]
[1730650933911,2.7383,160.68,160.61,3.1142]
[1730650934613,3.1136,160.65,160.61,3.1142]
[1730650935119,3.1132,160.66,160.61,3.1142]
[1730650935311,2.7383,160.68,160.54,1.3746]
[1730650935712,3.1137,160.64,160.54,1.3746]
[1730650936220,3.1137,160.64,160.6,3.1142]
[1730650936915,2.7383,160.68,160.63,3.1137]
[1730650937107,6.8183,160.68,160.54,1.3746]
[1730650937307,6.8183,160.68,160.54,2.6898]
[1730650937517,3.1132,160.66,160.62,3.1138]
[1730650937822,6.8183,160.68,160.54,2.6898]
[1730650938017,3.1131,160.67,160.63,3.1137]
[1730650938518,6.8183,160.68,160.63,3.1137]
[1730650938719,6.8183,160.68,160.54,2.6898]
[1730650938923,6.8183,160.68,160.61,3.114]
[1730650939219,3.1135,160.65,160.61,3.114]
[1730650939423,6.8183,160.68,160.6,3.1142]
[1730650939636,6.8183,160.68,160.54,2.6898]
[1730650939923,3.1139,160.63,160.54,2.6898]
[1730650940119,3.1139,160.63,160.59,3.1144]
[1730650941424,1.3335,160.67,160.54,2.6898]
[1730650941617,4.08,160.66,160.54,2.6898]
[1730650942018,4.08,160.67,160.54,2.6898]
[1730650942321,1.3633,160.68,160.54,2.6898]
[1730650942934,2.6661,160.68,160.54,2.6898]
[1730650943117,3.1135,160.65,160.61,3.1141]
[1730650943714,3.1135,160.65,160.54,2.6898]
[1730650943918,3.1135,160.65,160.62,3.114]
[1730650944515,2.6661,160.68,160.54,2.6898]
[1730650944723,2.6661,160.68,160.59,3.1144]
[1730650945118,3.1139,160.63,160.59,3.1144]
[1730650948721,4.08,160.64,160.59,3.1144]
[1730650948919,3.114,160.62,160.59,3.1144]
[1730650949535,3.114,160.62,160.54,1.3746]
[1730650949536,2.6661,160.68,160.54,1.3746]
[1730650949727,6.7461,160.68,160.54,7.6056]
[1730650950235,3.113,160.67,160.64,3.1135]
[1730650950635,1.3633,160.68,160.58,4.08]
[1730650950824,1.3633,160.68,160.65,3.1133]
[1730650951634,4.4761,160.68,160.65,3.1133]
[1730650951832,61.96814423,160.73,160.62,3.1139]
[1730650952031,4.08,160.71,160.59,7.6208]
[1730650952231,3.1125,160.7,160.6,1.3607]
[1730650952634,4.08,160.71,160.61,1.4071]
[1730650952834,7.1924,160.71,160.61,1.4071]
[1730650953142,7.1924,160.71,160.67,3.1129]
[1730650953330,7.1924,160.71,160.61,1.4071]
[1730650953633,4.08,160.71,160.69,3.1125]
[1730650954737,4.08,160.71,160.68,3.1128]
[1730650955324,4.08,160.71,160.61,1.4071]
[1730650955527,3.1125,160.7,160.66,3.1131]
[1730650956027,3.1125,160.7,160.67,3.113]
[1730650958140,3.1126,160.69,160.66,3.1131]
[1730650958338,4.08,160.71,160.66,3.1131]
[1730650958838,3.1126,160.7,160.66,3.1131]
[1730650959542,3.1126,160.7,160.67,3.113]
[1730650966343,4.08,160.71,160.61,4.52778447]
[1730650966852,2.7541,160.76,160.63,10.46252097]
[1730650966853,4.08,160.75,160.63,10.46252097]
[1730650967346,3.1124,160.71,160.63,10.46252097]
[1730650967549,3.1124,160.71,160.68,3.1128]
[1730650968045,4.08,160.75,160.63,10.46252097]
[1730650968855,3.1125,160.7,160.67,3.1129]
[1730650975454,2.7541,160.76,160.67,10.46252097]
[1730650975455,1.3772,160.76,160.67,10.46252097]
[1730650975657,1.3772,160.76,160.68,1.2961]
[1730650975959,3.1112,160.77,160.74,3.1116]
[1730650976154,4.06,160.79,160.68,2.6643]
[1730650976859,4.06,160.79,160.72,3.112]
[1730650976860,3.1115,160.75,160.72,3.112]
[1730650978553,4.06,160.79,160.68,1.2961]
[1730650979258,3.1114,160.76,160.72,3.1118]
[1730650979651,3.1114,160.76,160.68,1.2961]
[1730650979954,4.06,160.79,160.68,1.2961]
[1730650980460,3.1116,160.75,160.72,3.112]
[1730650980964,4.06,160.79,160.68,1.2961]
[1730650981763,3.1118,160.74,160.71,3.1122]
[1730650983766,4.06,160.74,160.64,1.3288]
[1730650983975,1.3434,160.73,160.64,1.3288]
[1730650984171,3.1125,160.7,160.67,3.113]
[1730650984366,3.1125,160.7,160.64,1.3288]
[1730650984367,2.7454,160.73,160.64,1.3288]
[1730650984977,2.7454,160.73,160.63,1.3849]
[1730650985374,1.3434,160.73,160.64,10.46252097]
[1730650985778,1.3434,160.73,160.7,3.1123]
[1730650986085,4.06,160.75,160.64,10.46252097]
[1730650986582,7.1715,160.75,160.64,10.46252097]
[1730650986975,7.1715,160.75,160.71,3.1121]
[1730650987190,7.1715,160.75,160.64,10.46252097]
[1730650988277,7.1715,160.75,160.71,3.1121]
[1730650988788,3.1115,160.75,160.71,3.1121]
[1730650989494,4.06,160.77,160.64,10.46252097]
[1730650989680,3.1121,160.72,160.68,3.1127]
[1730650990275,4.06,160.77,160.64,10.46252097]
[1730650990476,4.06,160.77,160.63,1.3849]
[1730650990980,4.06,160.77,160.68,3.1127]
[1730650991180,4.06,160.77,160.63,1.3849]
[1730650991675,3.1123,160.71,160.67,3.1128]
[1730650991879,3.1123,160.71,160.63,1.3849]
[1730650992282,3.1123,160.71,160.67,3.1129]
[1730650993689,5.91787249,160.78,160.67,3.1129]
[1730650993690,4.06,160.73,160.67,3.1129]
[1730650993990,4.06,160.73,160.63,1.3849]
[1730650994191,4.06,160.73,160.68,3.1127]
[1730650994381,3.1122,160.72,160.68,3.1127]
[1730650995395,3.1122,160.72,160.69,3.1126]
[1730650995593,3.1123,160.71,160.63,1.3849]
[1730650995993,4.06,160.73,160.64,10.46252097]
[1730650996490,4.06,160.73,160.65,1.3516]
[1730650997279,4.06,160.73,160.64,10.46252097]
[1730650998093,3.1122,160.72,160.68,3.1127]
[1730650998795,3.1126,160.7,160.67,3.113]
[1730650998982,4.06,160.73,160.63,1.3849]
[1730650999188,1.3924,160.72,160.63,1.3849]
[1730650999689,2.7615,160.72,160.63,1.3849]
[1730650999892,3.1124,160.71,160.63,1.3849]
[1730651000089,2.7615,160.72,160.63,1.3849]
[1730651000494,3.1124,160.71,160.67,3.1129]
[1730651002992,1.3613,160.79,160.63,1.3849]
[1730651003201,1.3859,160.77,160.64,10.46252097]
[1730651003703,3.1119,160.73,160.69,3.1125]
[1730651004294,3.1119,160.73,160.64,10.46252097]
[1730651004492,3.1116,160.75,160.71,3.1121]
[1730651004804,1.3859,160.77,160.67,4.04]
[1730651004994,1.3859,160.77,160.68,10.46252097]
[1730651005301,3.111,160.78,160.74,3.1115]
[1730651005488,60.93309659,160.82,160.72,14.50252097]
[1730651005686,53.45573886,160.93,160.72,14.50252097]
[1730651005687,3.1098,160.84,160.79,3.1105]
[1730651006093,3.1098,160.84,160.8,3.1103]
[1730651006492,3.1095,160.85,160.73,4.34012053]
[1730651006697,2.7133,160.89,160.76,10.46252097]
[1730651006902,1.3243,160.89,160.77,6.6976]
[1730651007297,1.3243,160.89,160.83,3.1098]
[1730651007802,3.1093,160.87,160.83,3.1098]
[1730651008301,3.1095,160.86,160.81,3.1102]
[1730651010100,1.3243,160.89,160.77,6.6976]
[1730651010397,1.3243,160.89,160.77,5.3239]
[1730651010597,3.11,160.83,160.77,5.3239]
[1730651010804,3.11,160.83,160.76,10.46252097]
[1730651010805,1.3105,160.88,160.76,10.46252097]
[1730651011406,3.1101,160.83,160.79,3.1106]
[1730651012092,3.1103,160.81,160.74,4.04]
[1730651012302,3.10482969,160.84,160.73,1.2969]
[1730651012501,1.3975,160.8,160.73,1.2969]
[1730651012903,1.3975,160.8,160.7,4.04]
[1730651013099,5.4375,160.8,160.7,4.04]
[1730651013299,5.4375,160.8,160.73,3.1118]
[1730651013906,5.4375,160.8,160.69,1.3264]
[1730651014106,5.4375,160.8,160.75,3.1113]
[1730651014305,5.4375,160.8,160.69,1.3264]
[1730651014509,3.111,160.78,160.74,3.1116]
[1730651015207,5.4375,160.8,160.69,1.3264]
[1730651015402,1.4018,160.79,160.69,1.3264]
[1730651016012,5.4375,160.8,160.69,1.3264]
[1730651016401,8.548,160.8,160.76,3.1112]
[1730651016608,8.548,160.8,160.69,1.3264]
[1730651016808,1.4018,160.86,160.72,10.46252097]
[1730651017109,1.4018,160.86,160.75,10.46252097]
[1730651017312,4.04,160.89,160.75,10.46252097]
[1730651017516,4.04,160.89,160.75,13.520981]
[1730651018013,3.1096,160.85,160.81,3.1102]
[1730651019107,4.04,160.89,160.78,4.04]
[1730651019310,4.04,160.89,160.8,3.1105]
[1730651020097,4.04,160.89,160.78,4.04]
[1730651020098,3.1098,160.84,160.81,3.1103]
[1730651023717,3.1096,160.85,160.81,3.1103]
[1730651025224,3.1097,160.84,160.81,3.1103]
[1730651026113,4.04,160.89,160.81,3.1103]
[1730651026419,3.1096,160.85,160.81,3.1103]
[1730651026620,4.04,160.89,160.81,3.1102]
[1730651026818,3.1097,160.84,160.81,3.1102]
[1730651032030,4.04,160.89,160.78,14.48843336]
[1730651032230,1.4149,160.9,160.81,10.44843336]
[1730651032929,3.109,160.88,160.85,3.1094]
[1730651036322,3.1094,160.86,160.83,3.1098]
[1730651036523,3.1094,160.86,160.81,10.44843336]
[1730651037029,3.1092,160.87,160.81,10.44843336]
[1730651037431,3.1092,160.87,160.84,3.1097]
[1730651038120,1.4149,160.9,160.81,10.44843336]
[1730651038326,1.4149,160.9,160.86,3.1092]
[1730651038816,3.1089,160.89,160.86,3.1092]
[1730651039019,1.4149,160.9,160.81,10.44843336]
[1730651040327,3.1091,160.88,160.85,3.1095]
[1730651041628,1.4149,160.9,160.81,10.44843336]
[1730651041823,3.1088,160.89,160.86,3.1092]
[1730651042026,60.89480863,160.95,160.84,10.44843336]
[1730651042237,66.26200863,160.95,160.84,10.44843336]
[1730651042526,66.26200863,160.95,160.84,14.46843336]
[1730651042732,66.26200863,160.95,160.87,10.44843336]
[1730651043028,3.108,160.93,160.87,10.44843336]
[1730651043434,62.24200863,160.95,160.93,3.108]
[1730651043624,2.6656,161.0,160.89,10.44843336]
[1730651043818,4.02,160.99,160.89,10.44843336]
[1730651044020,3.1073,160.97,160.94,3.1078]
[1730651044334,35.83403336,161.0,160.88,1.2859]
[1730651044529,3.1082,160.93,160.89,3.1086]
[1730651045030,1.4072,160.96,160.89,3.1086]
[1730651045227,1.4072,160.96,160.88,1.2859]
[1730651046431,3.108,160.93,160.9,3.1085]
[1730651047621,3.1079,160.94,160.91,3.1084]
[1730651048327,3.108,160.93,160.9,3.1085]
[1730651050131,1.4072,160.96,160.85,4.02]
[1730651050334,1.4072,160.96,160.83,11.82373336]
[1730651050335,4.02,160.95,160.83,11.82373336]
[1730651050525,29.14843336,160.94,160.82,36.02703897]
[1730651051031,3.1095,160.86,160.82,36.02703897]
[1730651051534,4.02,160.9,160.81,3.1102]
[1730651051739,1.4003,160.89,160.81,3.1102]
[1730651052526,3.1097,160.85,160.81,3.1102]
[1730651054245,3.1098,160.84,160.81,3.1102]
[1730651055242,1.4003,160.89,160.8,1.3415]
[1730651055434,3.1096,160.85,160.82,3.1101]
[1730651056127,3.1098,160.84,160.8,4.452]
[1730651056325,1.4003,160.89,160.8,3.1105]
[1730651056726,4.02,160.9,160.84,3.1096]
[1730651056928,4.02,160.9,160.8,10.44843336]
[1730651057127,5.4004,160.92,160.8,10.44843336]
[1730651057328,3.1091,160.88,160.84,3.1096]
[1730651057527,5.4004,160.92,160.8,10.44843336]
[1730651057734,3.1093,160.87,160.8,10.44843336]
[1730651058640,5.4004,160.92,160.8,10.44843336]
[1730651058940,3.109,160.88,160.8,10.44843336]
[1730651059238,3.109,160.88,160.84,3.1096]
[1730651060030,3.1092,160.87,160.84,3.1096]
[1730651062245,1.3804,160.92,160.83,10.44843336]
[1730651062434,1.3804,160.92,160.84,1.3964]
[1730651062637,5.3741,160.93,160.84,1.3964]
[1730651062941,5.3741,160.93,160.9,3.1085]
[1730651063241,4.02,160.93,160.86,10.44843336]
[1730651063442,4.02,160.93,160.91,3.1082]
[1730651063938,3.1078,160.94,160.91,3.1082]
[1730651065344,1.352,160.96,160.9,3.1085]
[1730651065345,3.108,160.93,160.9,3.1085]
[1730651067342,1.352,160.96,160.89,10.44843336]
[1730651067644,5.3844,160.97,160.89,10.44843336]
[1730651067827,3.1075,160.96,160.92,3.108]
[1730651068032,3.1075,160.96,160.89,10.44843336]
[1730651069140,5.3896,161.0,160.89,10.44843336]
[1730651069353,3.1072,160.98,160.89,10.44843336]
[1730651070130,4.0,161.0,160.89,10.44843336]
[1730651070337,3.1073,160.97,160.94,3.1076]
[1730651070844,1.3413,161.02,160.89,10.44843336]
[1730651070845,3.1069,160.99,160.95,3.1075]
[1730651072645,1.3413,161.02,160.92,10.44843336]
[1730651072846,1.3413,161.02,160.91,4.0]
[1730651073236,1.3413,161.02,160.89,10.44843336]
[1730651073750,1.3413,161.02,160.93,3.1079]
[1730651074139,3.1074,160.97,160.93,3.1079]
[1730651074449,1.3413,161.02,160.89,10.44843336]
[1730651074646,3.1079,160.94,160.89,10.44843336]
[1730651074846,1.3413,161.02,160.89,10.44843336]
[1730651075145,4.0,161.01,160.89,10.44843336]
[1730651075338,3.1077,160.95,160.9,3.1084]
[1730651075650,4.0,161.01,160.89,10.44843336]